[Event "Titled Tuesday Blitz August 24 2021"]
[White "Prydun, Andriy"]
[Black "Bobkov, Vadim"]
[WhiteFideId "14145898"]
[BlackFideId "34110876"]
[WhiteElo "2047"]
[BlackElo "2117"]
[Result "0-1"]
[Round "04"]
[TimeControl "180+1"]
[Date "2021.08.24"]
[WhiteClock "0:00:01"]
[BlackClock "0:00:09"]

1. d4 {[%clk 0:03:00]}  d5 {[%clk 0:02:59]} 2. Nc3 {[%clk 0:02:59]}  e6 {[%clk 0:03:00]} 3. e4 {[%clk 0:02:59]}  f5 {[%clk 0:02:32]} 4. exf5 {[%clk 0:02:44]}  exf5 {[%clk 0:02:33]} 5. Bf4 {[%clk 0:02:30]}  Bd6 {[%clk 0:02:26]} 6. Bxd6 {[%clk 0:02:23]}  Qxd6 {[%clk 0:02:26]} 7. Bd3 {[%clk 0:01:26]}  Nf6 {[%clk 0:02:22]} 8. Qe2+ {[%clk 0:01:22]}  Qe7 {[%clk 0:01:53]} 9. Nf3 {[%clk 0:01:14]}  c6 {[%clk 0:01:46]} 10. O-O {[%clk 0:00:59]}  Qxe2 {[%clk 0:01:35]} 11. Nxe2 {[%clk 0:00:59]}  Ne4 {[%clk 0:01:25]} 12. Ne5 {[%clk 0:00:58]}  Nd7 {[%clk 0:01:22]} 13. Nxd7 {[%clk 0:00:58]}  Bxd7 {[%clk 0:01:23]} 14. f3 {[%clk 0:00:58]}  Nd6 {[%clk 0:01:20]} 15. Rfe1 {[%clk 0:00:55]}  Kf7 {[%clk 0:01:18]} 16. h4 {[%clk 0:00:52]}  Rae8 {[%clk 0:01:09]} 17. Nf4 {[%clk 0:00:52]}  Rxe1+ {[%clk 0:01:08]} 18. Rxe1 {[%clk 0:00:51]}  Re8 {[%clk 0:01:09]} 19. Rxe8 {[%clk 0:00:44]}  Bxe8 {[%clk 0:01:10]} 20. Kf2 {[%clk 0:00:37]}  Kf6 {[%clk 0:01:09]} 21. Kg3 {[%clk 0:00:34]}  g6 {[%clk 0:01:02]} 22. Nh3 {[%clk 0:00:25]}  h6 {[%clk 0:01:02]} 23. Kf4 {[%clk 0:00:24]}  Nf7 {[%clk 0:01:00]} 24. g4 {[%clk 0:00:23]}  g5+ {[%clk 0:00:58]} 25. hxg5+ {[%clk 0:00:22]}  hxg5+ {[%clk 0:00:59]} 26. Kg3 {[%clk 0:00:22]}  f4+ {[%clk 0:00:43]} 27. Kg2 {[%clk 0:00:18]}  Nd8 {[%clk 0:00:40]} 28. Nf2 {[%clk 0:00:16]}  Ne6 {[%clk 0:00:40]} 29. c3 {[%clk 0:00:16]}  c5 {[%clk 0:00:39]} 30. Bf5 {[%clk 0:00:14]}  cxd4 {[%clk 0:00:11]} 31. Bxe6 {[%clk 0:00:13]}  dxc3 {[%clk 0:00:12]} 32. Bxd5 {[%clk 0:00:11]}  cxb2 {[%clk 0:00:11]} 33. Be4 {[%clk 0:00:11]}  Bg6 {[%clk 0:00:11]} 34. Nd1 {[%clk 0:00:05]}  Bxe4 {[%clk 0:00:08]} 35. Nxb2 {[%clk 0:00:04]}  Bd5 {[%clk 0:00:08]} 36. a3 {[%clk 0:00:03]}  Ke5 {[%clk 0:00:08]} 37. Nd3+ {[%clk 0:00:02]}  Kd4 {[%clk 0:00:09]} 38. Nb4 {[%clk 0:00:03]}  a5 {[%clk 0:00:09]} 39. Nc2+ {[%clk 0:00:02]}  Kc3 {[%clk 0:00:09]} 40. Ne1 {[%clk 0:00:03]}  b5 {[%clk 0:00:09]} 41. Kf2 {[%clk 0:00:02]}  b4 {[%clk 0:00:08]} 42. axb4 {[%clk 0:00:02]}  axb4 {[%clk 0:00:09]} 43. Ke2 {[%clk 0:00:01]}  b3 {[%clk 0:00:09]} 44. Nd3 {[%clk 0:00:01]}  Bc4 {[%clk 0:00:09]} 0-1


[Site "https://www.chess.com"]

[Event "Titled Tuesday Blitz August 24 2021"]
[White "Rakhmanov, Aleksandr"]
[Black "Goryachkina, Aleksandra"]
[WhiteFideId "4173708"]
[BlackFideId "4147103"]
[WhiteElo "2498"]
[BlackElo "2441"]
[Result "0-1"]
[Round "04"]
[TimeControl "180+1"]
[Date "2021.08.24"]
[WhiteClock "0:00:01"]
[BlackClock "0:00:13"]

1. c4 {[%clk 0:03:00]}  e6 {[%clk 0:02:58]} 2. e4 {[%clk 0:02:58]}  d5 {[%clk 0:02:56]} 3. exd5 {[%clk 0:02:58]}  exd5 {[%clk 0:02:57]} 4. d4 {[%clk 0:02:59]}  Nf6 {[%clk 0:02:54]} 5. Nc3 {[%clk 0:03:00]}  Bb4 {[%clk 0:02:51]} 6. Bd3 {[%clk 0:02:59]}  dxc4 {[%clk 0:02:50]} 7. Bxc4 {[%clk 0:03:00]}  O-O {[%clk 0:02:49]} 8. Ne2 {[%clk 0:03:01]}  Bg4 {[%clk 0:02:41]} 9. f3 {[%clk 0:02:56]}  Bf5 {[%clk 0:02:29]} 10. O-O {[%clk 0:02:54]}  Nc6 {[%clk 0:02:24]} 11. a3 {[%clk 0:02:53]}  Be7 {[%clk 0:02:22]} 12. Be3 {[%clk 0:02:51]}  Qd7 {[%clk 0:02:12]} 13. Ba2 {[%clk 0:02:31]}  Rae8 {[%clk 0:02:09]} 14. Bf2 {[%clk 0:02:31]}  a6 {[%clk 0:02:02]} 15. Ng3 {[%clk 0:02:29]}  Bg6 {[%clk 0:01:59]} 16. Nge4 {[%clk 0:02:26]}  Rd8 {[%clk 0:01:45]} 17. Nc5 {[%clk 0:01:59]}  Qc8 {[%clk 0:01:43]} 18. Qa4 {[%clk 0:01:49]}  Bxc5 {[%clk 0:01:03]} 19. dxc5 {[%clk 0:01:49]}  Rd2 {[%clk 0:01:02]} 20. Bh4 {[%clk 0:01:24]}  Rd4 {[%clk 0:01:00]} 21. Qxd4 {[%clk 0:01:00]}  Nxd4 {[%clk 0:00:59]} 22. Rad1 {[%clk 0:01:00]}  Nf5 {[%clk 0:00:55]} 23. Bxf6 {[%clk 0:00:59]}  gxf6 {[%clk 0:00:55]} 24. Nd5 {[%clk 0:00:50]}  Kg7 {[%clk 0:00:55]} 25. Rfe1 {[%clk 0:00:51]}  Re8 {[%clk 0:00:50]} 26. g4 {[%clk 0:00:40]}  Rxe1+ {[%clk 0:00:42]} 27. Rxe1 {[%clk 0:00:41]}  Nd4 {[%clk 0:00:42]} 28. Kf2 {[%clk 0:00:41]}  Qd8 {[%clk 0:00:40]} 29. h4 {[%clk 0:00:37]}  c6 {[%clk 0:00:36]} 30. Nf4 {[%clk 0:00:24]}  Nc2 {[%clk 0:00:35]} 31. Re2 {[%clk 0:00:13]}  Qd4+ {[%clk 0:00:35]} 32. Kg3 {[%clk 0:00:14]}  Ne3 {[%clk 0:00:31]} 33. Rf2 {[%clk 0:00:11]}  h6 {[%clk 0:00:26]} 34. h5 {[%clk 0:00:11]}  Bh7 {[%clk 0:00:25]} 35. b4 {[%clk 0:00:11]}  Bd3 {[%clk 0:00:21]} 36. Nh3 {[%clk 0:00:09]}  Bf1 {[%clk 0:00:17]} 37. Nf4 {[%clk 0:00:09]}  Bc4 {[%clk 0:00:18]} 38. Bxc4 {[%clk 0:00:08]}  Qxc4 {[%clk 0:00:18]} 39. Nh3 {[%clk 0:00:04]}  Nd5 {[%clk 0:00:17]} 40. Ng1 {[%clk 0:00:03]}  Qd4 {[%clk 0:00:17]} 41. Nh3 {[%clk 0:00:02]}  Qe5+ {[%clk 0:00:17]} 42. Kg2 {[%clk 0:00:01]}  Ne3+ {[%clk 0:00:16]} 43. Kg1 {[%clk 0:00:01]}  Nd5 {[%clk 0:00:13]} 44. Kg2 {[%clk 0:00:01]}  Qe1 {[%clk 0:00:13]} 0-1


[Site "https://www.chess.com"]

[Event "Titled Tuesday Blitz August 24 2021"]
[White "Sadhwani, Raunak"]
[Black "Idani, Pouya"]
[WhiteFideId "35093487"]
[BlackFideId "12510130"]
[WhiteElo "2514"]
[BlackElo "2610"]
[Result "1-0"]
[Round "04"]
[TimeControl "180+1"]
[Date "2021.08.24"]
[WhiteClock "0:00:53"]
[BlackClock "0:00:08"]

1. b3 {[%clk 0:03:00]}  Nf6 {[%clk 0:02:53]} 2. Bb2 {[%clk 0:03:01]}  g6 {[%clk 0:02:54]} 3. Nf3 {[%clk 0:03:01]}  Bg7 {[%clk 0:02:53]} 4. g3 {[%clk 0:03:02]}  O-O {[%clk 0:02:53]} 5. Bg2 {[%clk 0:03:03]}  d6 {[%clk 0:02:52]} 6. d4 {[%clk 0:03:01]}  c5 {[%clk 0:02:50]} 7. O-O {[%clk 0:02:56]}  Nc6 {[%clk 0:02:48]} 8. c4 {[%clk 0:02:55]}  cxd4 {[%clk 0:02:48]} 9. Nxd4 {[%clk 0:02:56]}  Bd7 {[%clk 0:02:49]} 10. Nc3 {[%clk 0:02:52]}  Qa5 {[%clk 0:02:48]} 11. e3 {[%clk 0:02:50]}  Rfc8 {[%clk 0:02:46]} 12. Rc1 {[%clk 0:02:49]}  Rab8 {[%clk 0:02:46]} 13. h3 {[%clk 0:02:47]}  a6 {[%clk 0:02:46]} 14. Re1 {[%clk 0:02:27]}  Qd8 {[%clk 0:02:36]} 15. a4 {[%clk 0:02:17]}  Na5 {[%clk 0:02:20]} 16. Rb1 {[%clk 0:02:12]}  Qb6 {[%clk 0:02:10]} 17. Ba1 {[%clk 0:02:11]}  Nc6 {[%clk 0:01:59]} 18. Kh2 {[%clk 0:02:10]}  Nb4 {[%clk 0:01:55]} 19. e4 {[%clk 0:01:47]}  e6 {[%clk 0:01:48]} 20. Nc2 {[%clk 0:01:41]}  Bc6 {[%clk 0:01:41]} 21. f4 {[%clk 0:01:37]}  Rd8 {[%clk 0:01:39]} 22. Nxb4 {[%clk 0:01:34]}  Qxb4 {[%clk 0:01:39]} 23. Qd3 {[%clk 0:01:28]}  Nd7 {[%clk 0:01:12]} 24. Na2 {[%clk 0:01:28]}  Qa3 {[%clk 0:01:13]} 25. Bxg7 {[%clk 0:01:28]}  Kxg7 {[%clk 0:01:14]} 26. Qc3+ {[%clk 0:01:28]}  Kg8 {[%clk 0:01:13]} 27. Nb4 {[%clk 0:01:27]}  a5 {[%clk 0:00:57]} 28. Nc2 {[%clk 0:01:13]}  Qc5 {[%clk 0:00:55]} 29. Ne3 {[%clk 0:01:10]}  b5 {[%clk 0:00:47]} 30. axb5 {[%clk 0:01:11]}  Rxb5 {[%clk 0:00:48]} 31. Ng4 {[%clk 0:01:11]}  e5 {[%clk 0:00:30]} 32. f5 {[%clk 0:01:11]}  h5 {[%clk 0:00:26]} 33. Nh6+ {[%clk 0:01:06]}  Kg7 {[%clk 0:00:26]} 34. Qd2 {[%clk 0:01:06]}  Rb7 {[%clk 0:00:19]} 35. Qg5 {[%clk 0:01:07]}  Rh8 {[%clk 0:00:13]} 36. fxg6 {[%clk 0:00:53]}  fxg6 {[%clk 0:00:08]} 37. Nf5+ {[%clk 0:00:53]}  Kh7 {[%clk 0:00:08]} 38. Qe7+ {[%clk 0:00:53]} 1-0


[Site "https://www.chess.com"]

[Event "Titled Tuesday Blitz August 24 2021"]
[White "Sadykov, Ramil"]
[Black "Shahade, Gregory"]
[WhiteFideId "24113590"]
[BlackFideId "2009064"]
[WhiteElo "2300"]
[BlackElo "2693"]
[Result "0-1"]
[Round "04"]
[TimeControl "180+1"]
[Date "2021.08.24"]
[WhiteClock "0:00:03"]
[BlackClock "0:00:54"]

1. d4 {[%clk 0:02:54]}  Nf6 {[%clk 0:02:59]} 2. Nc3 {[%clk 0:02:53]}  d5 {[%clk 0:02:58]} 3. Bf4 {[%clk 0:02:54]}  g6 {[%clk 0:02:50]} 4. e3 {[%clk 0:02:53]}  Bg7 {[%clk 0:02:49]} 5. Nf3 {[%clk 0:02:45]}  c6 {[%clk 0:02:46]} 6. Ne5 {[%clk 0:02:42]}  Nh5 {[%clk 0:02:37]} 7. Be2 {[%clk 0:02:29]}  Nxf4 {[%clk 0:02:37]} 8. exf4 {[%clk 0:02:30]}  f6 {[%clk 0:02:33]} 9. Nf3 {[%clk 0:02:14]}  Nd7 {[%clk 0:02:33]} 10. h4 {[%clk 0:02:11]}  e5 {[%clk 0:02:16]} 11. h5 {[%clk 0:01:48]}  e4 {[%clk 0:02:02]} 12. Nd2 {[%clk 0:01:26]}  f5 {[%clk 0:01:52]} 13. Nb3 {[%clk 0:01:09]}  g5 {[%clk 0:01:48]} 14. h6 {[%clk 0:01:03]}  Bf6 {[%clk 0:01:48]} 15. Bh5+ {[%clk 0:00:57]}  Kf8 {[%clk 0:01:48]} 16. Qd2 {[%clk 0:00:47]}  Nb6 {[%clk 0:01:47]} 17. Na5 {[%clk 0:00:27]}  Rg8 {[%clk 0:01:34]} 18. g4 {[%clk 0:00:17]}  fxg4 {[%clk 0:01:23]} 19. Ne2 {[%clk 0:00:11]}  Qd6 {[%clk 0:01:08]} 20. O-O-O {[%clk 0:00:05]}  gxf4 {[%clk 0:01:05]} 21. Rdg1 {[%clk 0:00:04]}  f3 {[%clk 0:01:00]} 22. Bxg4 {[%clk 0:00:03]}  Bxg4 {[%clk 0:00:54]} 0-1


[Site "https://www.chess.com"]

[Event "Titled Tuesday Blitz August 24 2021"]
[White "Saya, Ethan"]
[Black "Krivonosov, Oleg"]
[WhiteFideId "26095181"]
[BlackFideId "11600349"]
[WhiteElo "2241"]
[BlackElo "2469"]
[Result "0-1"]
[Round "04"]
[TimeControl "180+1"]
[Date "2021.08.24"]
[WhiteClock "0:00:03"]
[BlackClock "0:00:37"]

1. e4 {[%clk 0:03:00]}  e5 {[%clk 0:02:59]} 2. Nf3 {[%clk 0:02:59]}  Nc6 {[%clk 0:02:59]} 3. Bc4 {[%clk 0:02:59]}  Bc5 {[%clk 0:02:58]} 4. c3 {[%clk 0:02:59]}  Nf6 {[%clk 0:02:57]} 5. d4 {[%clk 0:03:00]}  exd4 {[%clk 0:02:56]} 6. cxd4 {[%clk 0:03:01]}  Bb4+ {[%clk 0:02:55]} 7. Bd2 {[%clk 0:03:02]}  Nxe4 {[%clk 0:02:51]} 8. Bxb4 {[%clk 0:03:02]}  Nxb4 {[%clk 0:02:50]} 9. Bxf7+ {[%clk 0:03:03]}  Kxf7 {[%clk 0:02:50]} 10. Qb3+ {[%clk 0:03:03]}  Kf8 {[%clk 0:02:50]} 11. Qxb4+ {[%clk 0:03:03]}  Qe7 {[%clk 0:02:50]} 12. Qxe7+ {[%clk 0:03:04]}  Kxe7 {[%clk 0:02:50]} 13. O-O {[%clk 0:03:04]}  Nf6 {[%clk 0:02:49]} 14. Nc3 {[%clk 0:03:03]}  Rf8 {[%clk 0:02:46]} 15. Rac1 {[%clk 0:02:53]}  c6 {[%clk 0:02:41]} 16. d5 {[%clk 0:02:53]}  d6 {[%clk 0:02:29]} 17. dxc6 {[%clk 0:02:50]}  bxc6 {[%clk 0:02:28]} 18. Nd4 {[%clk 0:02:43]}  Bd7 {[%clk 0:02:27]} 19. Rfe1+ {[%clk 0:02:38]}  Kd8 {[%clk 0:02:27]} 20. Ne4 {[%clk 0:02:25]}  Nxe4 {[%clk 0:02:25]} 21. Rxe4 {[%clk 0:02:26]}  c5 {[%clk 0:02:22]} 22. Ne6+ {[%clk 0:02:26]}  Bxe6 {[%clk 0:02:21]} 23. Rxe6 {[%clk 0:02:27]}  Kd7 {[%clk 0:02:21]} 24. Rce1 {[%clk 0:02:27]}  Rae8 {[%clk 0:02:19]} 25. Rxe8 {[%clk 0:02:26]}  Rxe8 {[%clk 0:02:20]} 26. Rxe8 {[%clk 0:02:26]}  Kxe8 {[%clk 0:02:20]} 27. f4 {[%clk 0:02:24]}  d5 {[%clk 0:02:19]} 28. Kf2 {[%clk 0:02:23]}  Ke7 {[%clk 0:02:17]} 29. Ke3 {[%clk 0:02:23]}  a5 {[%clk 0:02:17]} 30. g4 {[%clk 0:02:13]}  h5 {[%clk 0:02:08]} 31. h3 {[%clk 0:02:03]}  h4 {[%clk 0:02:07]} 32. b3 {[%clk 0:01:58]}  Ke6 {[%clk 0:02:04]} 33. Kd3 {[%clk 0:01:55]}  Kd6 {[%clk 0:02:03]} 34. Ke3 {[%clk 0:01:51]}  g6 {[%clk 0:02:01]} 35. a3 {[%clk 0:01:49]}  Ke6 {[%clk 0:01:59]} 36. Kd3 {[%clk 0:01:49]}  Kd6 {[%clk 0:01:59]} 37. Kc3 {[%clk 0:01:49]}  Kc6 {[%clk 0:01:55]} 38. b4 {[%clk 0:01:40]}  a4 {[%clk 0:01:12]} 39. f5 {[%clk 0:01:11]}  gxf5 {[%clk 0:01:06]} 40. gxf5 {[%clk 0:01:11]}  d4+ {[%clk 0:00:58]} 41. Kc4 {[%clk 0:01:08]}  cxb4 {[%clk 0:00:59]} 42. Kxb4 {[%clk 0:00:42]}  Kd5 {[%clk 0:00:57]} 43. f6 {[%clk 0:00:17]}  Ke6 {[%clk 0:00:55]} 44. Kc4 {[%clk 0:00:17]}  Kxf6 {[%clk 0:00:54]} 45. Kxd4 {[%clk 0:00:18]}  Kf5 {[%clk 0:00:54]} 46. Ke3 {[%clk 0:00:11]}  Ke5 {[%clk 0:00:54]} 47. Kf3 {[%clk 0:00:11]}  Kf5 {[%clk 0:00:43]} 48. Ke3 {[%clk 0:00:03]}  Ke5 {[%clk 0:00:42]} 49. Kf3 {[%clk 0:00:02]}  Kd4 {[%clk 0:00:35]} 50. Kg4 {[%clk 0:00:03]}  Kc3 {[%clk 0:00:36]} 51. Kxh4 {[%clk 0:00:04]}  Kb3 {[%clk 0:00:36]} 52. Kg4 {[%clk 0:00:02]}  Kxa3 {[%clk 0:00:36]} 53. h4 {[%clk 0:00:03]}  Kb3 {[%clk 0:00:36]} 54. h5 {[%clk 0:00:03]}  a3 {[%clk 0:00:36]} 55. h6 {[%clk 0:00:03]}  a2 {[%clk 0:00:37]} 0-1


[Site "https://www.chess.com"]

[Event "Titled Tuesday Blitz August 24 2021"]
[White "Sharapov, Evgeny"]
[Black "Ivanisevic, Ivan"]
[WhiteFideId "14103133"]
[BlackFideId "912417"]
[WhiteElo "2367"]
[BlackElo "2499"]
[Result "0-1"]
[Round "04"]
[TimeControl "180+1"]
[Date "2021.08.24"]
[WhiteClock "0:00:06"]
[BlackClock "0:00:23"]

1. e4 {[%clk 0:03:00]}  c5 {[%clk 0:02:59]} 2. Nf3 {[%clk 0:02:59]}  e6 {[%clk 0:03:00]} 3. d4 {[%clk 0:02:59]}  cxd4 {[%clk 0:03:01]} 4. Nxd4 {[%clk 0:02:59]}  Nc6 {[%clk 0:03:01]} 5. Nb5 {[%clk 0:02:58]}  d6 {[%clk 0:03:01]} 6. Bf4 {[%clk 0:02:57]}  Ne5 {[%clk 0:02:59]} 7. Bxe5 {[%clk 0:02:55]}  dxe5 {[%clk 0:02:59]} 8. Qxd8+ {[%clk 0:02:55]}  Kxd8 {[%clk 0:03:00]} 9. N1a3 {[%clk 0:02:49]}  Bc5 {[%clk 0:02:39]} 10. O-O-O {[%clk 0:02:45]}  Ke7 {[%clk 0:02:39]} 11. f3 {[%clk 0:02:38]}  Bd7 {[%clk 0:02:38]} 12. Nb1 {[%clk 0:02:16]}  Rc8 {[%clk 0:02:35]} 13. N5c3 {[%clk 0:02:15]}  Nf6 {[%clk 0:02:31]} 14. Bd3 {[%clk 0:02:10]}  g5 {[%clk 0:02:30]} 15. Nd2 {[%clk 0:02:05]}  g4 {[%clk 0:02:30]} 16. Rhf1 {[%clk 0:01:59]}  Rhg8 {[%clk 0:02:29]} 17. g3 {[%clk 0:01:59]}  Be3 {[%clk 0:02:14]} 18. Kb1 {[%clk 0:01:57]}  Bc6 {[%clk 0:02:03]} 19. fxg4 {[%clk 0:01:42]}  Rxg4 {[%clk 0:01:59]} 20. Rfe1 {[%clk 0:01:37]}  Bd4 {[%clk 0:01:55]} 21. Nb5 {[%clk 0:01:31]}  Rd8 {[%clk 0:01:33]} 22. Nxd4 {[%clk 0:01:27]}  exd4 {[%clk 0:01:32]} 23. Re2 {[%clk 0:01:12]}  h5 {[%clk 0:01:32]} 24. Rf1 {[%clk 0:01:06]}  Nd7 {[%clk 0:01:27]} 25. Nf3 {[%clk 0:01:01]}  Nc5 {[%clk 0:01:07]} 26. Ne5 {[%clk 0:00:59]}  Rg7 {[%clk 0:01:08]} 27. Nxc6+ {[%clk 0:00:58]}  bxc6 {[%clk 0:01:09]} 28. Ref2 {[%clk 0:00:50]}  Nd7 {[%clk 0:00:57]} 29. Be2 {[%clk 0:00:47]}  Rh8 {[%clk 0:00:55]} 30. Rf4 {[%clk 0:00:44]}  Ne5 {[%clk 0:00:55]} 31. Kc1 {[%clk 0:00:32]}  Ng6 {[%clk 0:00:44]} 32. R4f2 {[%clk 0:00:31]}  h4 {[%clk 0:00:44]} 33. g4 {[%clk 0:00:31]}  h3 {[%clk 0:00:44]} 34. Rg1 {[%clk 0:00:30]}  Rh4 {[%clk 0:00:42]} 35. Rg3 {[%clk 0:00:29]}  Ne5 {[%clk 0:00:42]} 36. Rf4 {[%clk 0:00:25]}  c5 {[%clk 0:00:40]} 37. b3 {[%clk 0:00:24]}  f6 {[%clk 0:00:38]} 38. Kd2 {[%clk 0:00:23]}  Rg5 {[%clk 0:00:38]} 39. c3 {[%clk 0:00:20]}  a5 {[%clk 0:00:36]} 40. cxd4 {[%clk 0:00:20]}  cxd4 {[%clk 0:00:37]} 41. a3 {[%clk 0:00:19]}  Ng6 {[%clk 0:00:28]} 42. Rf1 {[%clk 0:00:18]}  e5 {[%clk 0:00:25]} 43. Rff3 {[%clk 0:00:16]}  Nf4 {[%clk 0:00:25]} 44. Bf1 {[%clk 0:00:16]}  Rgxg4 {[%clk 0:00:23]} 45. Rxg4 {[%clk 0:00:16]}  Rxg4 {[%clk 0:00:24]} 46. Bxh3 {[%clk 0:00:16]}  Rh4 {[%clk 0:00:24]} 47. Bf5 {[%clk 0:00:13]}  Rxh2+ {[%clk 0:00:25]} 48. Kd1 {[%clk 0:00:13]}  d3 {[%clk 0:00:25]} 49. b4 {[%clk 0:00:12]}  axb4 {[%clk 0:00:25]} 50. axb4 {[%clk 0:00:12]}  Kd6 {[%clk 0:00:25]} 51. Rg3 {[%clk 0:00:12]}  Rb2 {[%clk 0:00:24]} 52. Rg7 {[%clk 0:00:11]}  Rxb4 {[%clk 0:00:24]} 53. Rd7+ {[%clk 0:00:11]}  Kc5 {[%clk 0:00:24]} 54. Rf7 {[%clk 0:00:11]}  Kd4 {[%clk 0:00:24]} 55. Kd2 {[%clk 0:00:10]}  Rb2+ {[%clk 0:00:23]} 56. Kc1 {[%clk 0:00:10]}  Rc2+ {[%clk 0:00:23]} 57. Kd1 {[%clk 0:00:09]}  Ke3 {[%clk 0:00:23]} 58. Rg7 {[%clk 0:00:09]}  Ne2 {[%clk 0:00:23]} 59. Rh7 {[%clk 0:00:06]}  Rc1# {[%clk 0:00:23]} 0-1


[Site "https://www.chess.com"]

[Event "Titled Tuesday Blitz August 24 2021"]
[White "Shimanov, Aleksandr"]
[Black "Demin, Vladimir"]
[WhiteFideId "4198603"]
[BlackFideId "4167457"]
[WhiteElo "2596"]
[BlackElo "2542"]
[Result "1-0"]
[Round "04"]
[TimeControl "180+1"]
[Date "2021.08.24"]
[WhiteClock "0:01:44"]
[BlackClock "0:00:02"]

1. b3 {[%clk 0:03:00]}  d5 {[%clk 0:02:58]} 2. Bb2 {[%clk 0:02:58]}  Bg4 {[%clk 0:02:51]} 3. f3 {[%clk 0:02:58]}  Bh5 {[%clk 0:02:50]} 4. h4 {[%clk 0:02:58]}  Qd6 {[%clk 0:02:39]} 5. d4 {[%clk 0:02:55]}  Qg3+ {[%clk 0:02:36]} 6. Kd2 {[%clk 0:02:55]}  g6 {[%clk 0:02:28]} 7. Qe1 {[%clk 0:02:52]}  Bh6+ {[%clk 0:01:47]} 8. Kd1 {[%clk 0:02:50]}  Qxe1+ {[%clk 0:01:48]} 9. Kxe1 {[%clk 0:02:50]}  f5 {[%clk 0:01:49]} 10. Nc3 {[%clk 0:02:44]}  Nf6 {[%clk 0:01:44]} 11. Bc1 {[%clk 0:02:41]}  Bxc1 {[%clk 0:01:39]} 12. Rxc1 {[%clk 0:02:40]}  Nc6 {[%clk 0:01:37]} 13. e3 {[%clk 0:02:39]}  h6 {[%clk 0:01:28]} 14. Bb5 {[%clk 0:02:38]}  Kf7 {[%clk 0:01:24]} 15. Bxc6 {[%clk 0:02:36]}  bxc6 {[%clk 0:01:23]} 16. Nh3 {[%clk 0:02:37]}  Rag8 {[%clk 0:01:18]} 17. Nf4 {[%clk 0:02:32]}  g5 {[%clk 0:01:15]} 18. hxg5 {[%clk 0:02:33]}  hxg5 {[%clk 0:01:15]} 19. Nd3 {[%clk 0:02:32]}  Kg7 {[%clk 0:01:11]} 20. Ne5 {[%clk 0:02:29]}  Be8 {[%clk 0:01:11]} 21. Kf2 {[%clk 0:02:25]}  g4 {[%clk 0:01:01]} 22. Na4 {[%clk 0:02:11]}  Nd7 {[%clk 0:00:35]} 23. Nxd7 {[%clk 0:02:09]}  Bxd7 {[%clk 0:00:35]} 24. Nc5 {[%clk 0:02:10]}  Be8 {[%clk 0:00:29]} 25. Kg3 {[%clk 0:02:07]}  Kf6 {[%clk 0:00:22]} 26. f4 {[%clk 0:02:04]}  e6 {[%clk 0:00:18]} 27. c4 {[%clk 0:02:02]}  Ke7 {[%clk 0:00:15]} 28. Nd3 {[%clk 0:02:00]}  Kd6 {[%clk 0:00:13]} 29. c5+ {[%clk 0:01:56]}  Ke7 {[%clk 0:00:13]} 30. Ne5 {[%clk 0:01:57]}  Kf6 {[%clk 0:00:12]} 31. b4 {[%clk 0:01:55]}  Ke7 {[%clk 0:00:12]} 32. Rhg1 {[%clk 0:01:47]}  a6 {[%clk 0:00:12]} 33. Rc3 {[%clk 0:01:47]}  Bd7 {[%clk 0:00:11]} 34. Ra3 {[%clk 0:01:46]}  Rh6 {[%clk 0:00:02]} 35. Rxa6 {[%clk 0:01:45]}  Rgh8 {[%clk 0:00:02]} 36. Ra7 {[%clk 0:01:44]} 1-0


[Site "https://www.chess.com"]

[Event "Titled Tuesday Blitz August 24 2021"]
[White "Shuvalova, Polina"]
[Black "Yeletsky, Ivan"]
[WhiteFideId "24171760"]
[BlackFideId "24180327"]
[WhiteElo "2299"]
[BlackElo "2344"]
[Result "0-1"]
[Round "04"]
[TimeControl "180+1"]
[Date "2021.08.24"]
[WhiteClock "0:00:03"]
[BlackClock "0:00:15"]

1. d4 {[%clk 0:03:00]}  Nf6 {[%clk 0:02:54]} 2. Nf3 {[%clk 0:02:59]}  d5 {[%clk 0:02:49]} 3. Bf4 {[%clk 0:02:59]}  e6 {[%clk 0:02:47]} 4. e3 {[%clk 0:02:59]}  Bd6 {[%clk 0:02:47]} 5. Nbd2 {[%clk 0:02:55]}  b6 {[%clk 0:02:47]} 6. Bb5+ {[%clk 0:02:48]}  c6 {[%clk 0:02:45]} 7. Bd3 {[%clk 0:02:45]}  Ba6 {[%clk 0:02:41]} 8. Bxa6 {[%clk 0:02:44]}  Nxa6 {[%clk 0:02:40]} 9. c3 {[%clk 0:02:44]}  O-O {[%clk 0:02:33]} 10. O-O {[%clk 0:02:42]}  c5 {[%clk 0:02:30]} 11. Qe2 {[%clk 0:02:40]}  Nc7 {[%clk 0:02:29]} 12. Rad1 {[%clk 0:02:34]}  Rc8 {[%clk 0:02:25]} 13. Rfe1 {[%clk 0:02:33]}  b5 {[%clk 0:02:17]} 14. Bxd6 {[%clk 0:02:29]}  Qxd6 {[%clk 0:02:17]} 15. e4 {[%clk 0:02:30]}  dxe4 {[%clk 0:02:11]} 16. Nxe4 {[%clk 0:02:30]}  Nxe4 {[%clk 0:02:12]} 17. Qxe4 {[%clk 0:02:31]}  Qd5 {[%clk 0:02:13]} 18. dxc5 {[%clk 0:02:22]}  Qxc5 {[%clk 0:02:10]} 19. h3 {[%clk 0:02:00]}  Nd5 {[%clk 0:02:07]} 20. a3 {[%clk 0:02:00]}  Rfd8 {[%clk 0:01:58]} 21. Rd4 {[%clk 0:01:51]}  Nf6 {[%clk 0:01:53]} 22. Red1 {[%clk 0:01:49]}  Rxd4 {[%clk 0:01:25]} 23. Qxd4 {[%clk 0:01:49]}  Qxd4 {[%clk 0:01:25]} 24. Rxd4 {[%clk 0:01:46]}  Nd5 {[%clk 0:01:26]} 25. a4 {[%clk 0:01:36]}  a6 {[%clk 0:01:24]} 26. axb5 {[%clk 0:01:31]}  axb5 {[%clk 0:01:22]} 27. Ne5 {[%clk 0:01:32]}  f6 {[%clk 0:01:18]} 28. Nd3 {[%clk 0:01:31]}  Rc4 {[%clk 0:01:05]} 29. Rxc4 {[%clk 0:00:56]}  bxc4 {[%clk 0:01:06]} 30. Nc5 {[%clk 0:00:56]}  Kf7 {[%clk 0:01:06]} 31. Ne4 {[%clk 0:00:53]}  Ke7 {[%clk 0:01:05]} 32. Nd2 {[%clk 0:00:53]}  Nb6 {[%clk 0:01:05]} 33. b3 {[%clk 0:00:49]}  cxb3 {[%clk 0:01:05]} 34. Nxb3 {[%clk 0:00:50]}  Kd6 {[%clk 0:01:05]} 35. Kf1 {[%clk 0:00:41]}  Kd5 {[%clk 0:01:04]} 36. Ke2 {[%clk 0:00:39]}  Nc4 {[%clk 0:00:48]} 37. Kd3 {[%clk 0:00:36]}  Ne5+ {[%clk 0:00:44]} 38. Ke3 {[%clk 0:00:36]}  Nc4+ {[%clk 0:00:41]} 39. Kd3 {[%clk 0:00:36]}  e5 {[%clk 0:00:36]} 40. Nd2 {[%clk 0:00:30]}  Nxd2 {[%clk 0:00:23]} 41. Kxd2 {[%clk 0:00:30]}  Kc4 {[%clk 0:00:24]} 42. g4 {[%clk 0:00:25]}  g6 {[%clk 0:00:24]} 43. Kc2 {[%clk 0:00:21]}  h5 {[%clk 0:00:21]} 44. gxh5 {[%clk 0:00:19]}  gxh5 {[%clk 0:00:22]} 45. h4 {[%clk 0:00:17]}  f5 {[%clk 0:00:21]} 46. Kd2 {[%clk 0:00:17]}  Kc5 {[%clk 0:00:17]} 47. Kd3 {[%clk 0:00:16]}  Kd5 {[%clk 0:00:17]} 48. c4+ {[%clk 0:00:10]}  Kc5 {[%clk 0:00:17]} 49. Kc3 {[%clk 0:00:06]}  e4 {[%clk 0:00:14]} 50. Kb3 {[%clk 0:00:06]}  Kd4 {[%clk 0:00:13]} 51. Kb4 {[%clk 0:00:06]}  f4 {[%clk 0:00:13]} 52. c5 {[%clk 0:00:06]}  e3 {[%clk 0:00:14]} 53. fxe3+ {[%clk 0:00:04]}  fxe3 {[%clk 0:00:14]} 54. c6 {[%clk 0:00:02]}  e2 {[%clk 0:00:15]} 55. c7 {[%clk 0:00:02]}  e1=Q+ {[%clk 0:00:15]} 56. Kb5 {[%clk 0:00:03]}  Qe6 {[%clk 0:00:15]} 0-1


[Site "https://www.chess.com"]